[Event "Live Chess"]
[Site "Chess.com"]
[Date "2023.05.21"]
[Round "-"]
[White "mliszewski"]
[Black "YrrriKharkiv"]
[Result "0-1"]
[WhiteElo "1801"]
[BlackElo "2080"]
[TimeControl "300"]
[EndTime "5:55:46 PDT"]
[Termination "YrrriKharkiv won by checkmate"]

1. d4 {[%clk 0:04:59.6]} 1... Nf6 {[%clk 0:04:57.9]} 2. Bg5 {[%clk 0:04:58.9]}
2... c5 {[%clk 0:04:54.7]} 3. d5 {[%clk 0:04:57.8]} 3... Qb6 {[%clk 0:04:52.5]}
4. Nc3 {[%clk 0:04:56.9]} 4... Qxb2 {[%clk 0:04:48]} 5. Bd2 {[%clk 0:04:55.9]}
5... Qb6 {[%clk 0:04:47.2]} 6. e4 {[%clk 0:04:54.7]} 6... d6 {[%clk 0:04:46]} 7.
f4 {[%clk 0:04:53.2]} 7... Nbd7 {[%clk 0:04:42.6]} 8. Nf3 {[%clk 0:04:50.5]}
8... g6 {[%clk 0:04:41.8]} 9. e5 {[%clk 0:04:40.2]} 9... Ng4 {[%clk 0:04:37.1]}
10. Rb1 {[%clk 0:04:36.3]} 10... Qd8 {[%clk 0:04:33.7]} 11. h3 {[%clk
0:04:31.2]} 11... Nh6 {[%clk 0:04:32.2]} 12. Bb5 {[%clk 0:04:12]} 12... a6
{[%clk 0:04:28.5]} 13. Bxd7+ {[%clk 0:04:10.8]} 13... Qxd7 {[%clk 0:04:22.1]}
14. O-O {[%clk 0:04:03.2]} 14... Bg7 {[%clk 0:04:19.8]} 15. e6 {[%clk
0:03:51.2]} 15... fxe6 {[%clk 0:04:15.7]} 16. dxe6 {[%clk 0:03:50.4]} 16... Qxe6
{[%clk 0:04:14.8]} 17. Re1 {[%clk 0:03:50.1]} 17... Qc4 {[%clk 0:04:03.4]} 18.
Ne4 {[%clk 0:03:38.2]} 18... O-O {[%clk 0:03:53.4]} 19. Nfg5 {[%clk 0:03:29.7]}
19... Nf5 {[%clk 0:03:39.3]} 20. Rb3 {[%clk 0:03:18.6]} 20... h6 {[%clk
0:03:22.8]} 21. Nf3 {[%clk 0:03:12.8]} 21... Nd4 {[%clk 0:03:15.4]} 22. Nxd4
{[%clk 0:03:10.3]} 22... Qxd4+ {[%clk 0:03:06.5]} 23. Kh1 {[%clk 0:03:02.8]}
23... Bf5 {[%clk 0:02:58.7]} 24. Ng3 {[%clk 0:02:57.4]} 24... Rf7 {[%clk
0:02:31.7]} 25. Nxf5 {[%clk 0:02:52.9]} 25... Rxf5 {[%clk 0:02:27.8]} 26. Rxe7
{[%clk 0:02:50.7]} 26... b5 {[%clk 0:02:22.9]} 27. Rd3 {[%clk 0:02:45.1]} 27...
Qf6 {[%clk 0:02:17]} 28. Qe2 {[%clk 0:02:38]} 28... d5 {[%clk 0:02:06.7]} 29.
Re6 {[%clk 0:02:22.7]} 29... Qf7 {[%clk 0:02:04.9]} 30. Ra3 {[%clk 0:02:05.5]}
30... d4 {[%clk 0:01:40.8]} 31. Raxa6 {[%clk 0:02:01.9]} 31... Rxa6 {[%clk
0:01:39.8]} 32. Rxa6 {[%clk 0:02:00.4]} 32... c4 {[%clk 0:01:36.7]} 33. Qg4
{[%clk 0:01:55.3]} 33... h5 {[%clk 0:01:31.6]} 34. Qxg6 {[%clk 0:01:53.7]} 34...
Qxg6 {[%clk 0:01:30.1]} 35. Rxg6 {[%clk 0:01:52.2]} 35... c3 {[%clk 0:01:25.6]}
36. Bc1 {[%clk 0:01:50.9]} 36... Rd5 {[%clk 0:01:18.4]} 37. Rg5 {[%clk
0:01:44.3]} 37... Rxg5 {[%clk 0:01:14.9]} 38. fxg5 {[%clk 0:01:44.2]} 38... Kf7
{[%clk 0:01:12.6]} 39. Kg1 {[%clk 0:01:43.8]} 39... Ke6 {[%clk 0:01:11.9]} 40.
Kf2 {[%clk 0:01:43.1]} 40... Kd5 {[%clk 0:01:11.6]} 41. Ke2 {[%clk 0:01:42.7]}
41... Ke4 {[%clk 0:01:10.6]} 42. g3 {[%clk 0:01:37.2]} 42... b4 {[%clk
0:01:07.4]} 43. h4 {[%clk 0:01:35]} 43... Be5 {[%clk 0:01:03.2]} 44. g6 {[%clk
0:01:20.6]} 44... Kf5 {[%clk 0:00:59.6]} 45. Kd3 {[%clk 0:01:15.7]} 45... Kxg6
{[%clk 0:00:56.1]} 46. Bf4 {[%clk 0:01:12.9]} 46... Bf6 {[%clk 0:00:52]} 47. Kc4
{[%clk 0:01:08.9]} 47... Kf5 {[%clk 0:00:49.7]} 48. Kxb4 {[%clk 0:01:04.4]}
48... Ke4 {[%clk 0:00:36.6]} 49. a4 {[%clk 0:00:52.2]} 49... Bd8 {[%clk
0:00:29.1]} 50. a5 {[%clk 0:00:50.8]} 50... d3 {[%clk 0:00:20.4]} 51. Kxc3
{[%clk 0:00:47.9]} 51... Bxa5+ {[%clk 0:00:17.2]} 52. Kb3 {[%clk 0:00:46.6]}
52... d2 {[%clk 0:00:16.4]} 53. Bxd2 {[%clk 0:00:43.6]} 53... Bxd2 {[%clk
0:00:15.9]} 54. c4 {[%clk 0:00:43.2]} 54... Kf3 {[%clk 0:00:14.5]} 55. c5 {[%clk
0:00:41.7]} 55... Kxg3 {[%clk 0:00:13.9]} 56. c6 {[%clk 0:00:40.6]} 56... Bf4
{[%clk 0:00:13.4]} 57. Kc4 {[%clk 0:00:40.1]} 57... Kxh4 {[%clk 0:00:12.9]} 58.
Kd5 {[%clk 0:00:39.8]} 58... Kg3 {[%clk 0:00:12.6]} 59. Ke4 {[%clk 0:00:37.9]}
59... h4 {[%clk 0:00:12.4]} 60. Kd3 {[%clk 0:00:36.3]} 60... h3 {[%clk
0:00:12.1]} 61. Kc4 {[%clk 0:00:35.6]} 61... h2 {[%clk 0:00:11.8]} 62. Kb5
{[%clk 0:00:35.5]} 62... h1=Q {[%clk 0:00:11]} 63. Kb6 {[%clk 0:00:35.4]} 63...
Qb1+ {[%clk 0:00:09.8]} 64. Ka7 {[%clk 0:00:33.9]} 64... Qc2 {[%clk 0:00:09.5]}
65. Kb7 {[%clk 0:00:32.5]} 65... Qb3+ {[%clk 0:00:09]} 66. Ka6 {[%clk 0:00:31]}
66... Qc4+ {[%clk 0:00:08.7]} 67. Kb7 {[%clk 0:00:30.1]} 67... Qc5 {[%clk
0:00:08.1]} 68. c7 {[%clk 0:00:27.5]} 68... Qxc7+ {[%clk 0:00:07]} 69. Ka6
{[%clk 0:00:26.6]} 69... Qb8 {[%clk 0:00:06.2]} 70. Ka5 {[%clk 0:00:25.7]} 70...
Kf3 {[%clk 0:00:05.9]} 71. Ka4 {[%clk 0:00:25.2]} 71... Ke4 {[%clk 0:00:05.7]}
72. Ka3 {[%clk 0:00:25.1]} 72... Kd4 {[%clk 0:00:05]} 73. Ka2 {[%clk 0:00:25]}
73... Kc3 {[%clk 0:00:04.3]} 74. Ka1 {[%clk 0:00:24.9]} 74... Qb2# {[%clk
0:00:03.3]} 0-1

[Event "Live Chess"]
[Site "Chess.com"]
[Date "2023.05.21"]
[Round "-"]
[White "MaximKhimchenko"]
[Black "Bot_Boy"]
[Result "1-0"]
[WhiteElo "1404"]
[BlackElo "334"]
[TimeControl "300"]
[EndTime "5:55:48 PDT"]
[Termination "MaximKhimchenko won on time"]

1. e4 {[%clk 0:04:59.3]} 1... Nc6 {[%clk 0:04:56.7]} 2. Nf3 {[%clk 0:04:59.2]}
2... d5 {[%clk 0:04:52.3]} 3. d4 {[%clk 0:04:59.1]} 3... dxe4 {[%clk 0:04:48.8]}
4. Ne5 {[%clk 0:04:57.9]} 4... Nxe5 {[%clk 0:04:46.6]} 5. dxe5 {[%clk
0:04:57.8]} 5... Qxd1+ {[%clk 0:04:44]} 6. Kxd1 {[%clk 0:04:56.8]} 6... Bf5
{[%clk 0:04:39.2]} 7. Nc3 {[%clk 0:04:54.6]} 7... c6 {[%clk 0:04:36.4]} 8. Be3
{[%clk 0:04:47.5]} 8... e6 {[%clk 0:04:31.9]} 9. Bc4 {[%clk 0:04:42.8]} 9... Bb4
{[%clk 0:04:27]} 10. Ke2 {[%clk 0:04:30.4]} 10... b5 {[%clk 0:04:02.7]} 11. Nxb5
{[%clk 0:04:18.4]} 11... cxb5 {[%clk 0:03:50.8]} 12. Bxb5+ {[%clk 0:04:18.3]}
12... Kf8 {[%clk 0:03:41.5]} 13. a3 {[%clk 0:04:14.9]} 13... Be7 {[%clk
0:03:35.6]} 14. Rad1 {[%clk 0:04:12.8]} 14... f6 {[%clk 0:03:24.7]} 15. exf6
{[%clk 0:04:10.9]} 15... gxf6 {[%clk 0:03:17.5]} 16. c3 {[%clk 0:04:04.8]} 16...
Rb8 {[%clk 0:03:01.7]} 17. Ba4 {[%clk 0:03:43.6]} 17... Rxb2+ {[%clk 0:02:51.5]}
18. Rd2 {[%clk 0:03:41]} 18... Rxd2+ {[%clk 0:02:38.8]} 19. Kxd2 {[%clk
0:03:40.9]} 19... Bxa3 {[%clk 0:02:16.6]} 20. Bxa7 {[%clk 0:03:38.9]} 20... Kg7
{[%clk 0:02:09.3]} 21. Rb1 {[%clk 0:03:27]} 21... Kg6 {[%clk 0:01:37]} 22. Ke3
{[%clk 0:03:24.7]} 22... Bd6 {[%clk 0:01:23.9]} 23. f4 {[%clk 0:03:20.8]} 23...
Nh6 {[%clk 0:01:15.7]} 24. g3 {[%clk 0:03:20.5]} 24... Ng4+ {[%clk 0:01:13.2]}
25. Ke2 {[%clk 0:03:18.2]} 25... Nxh2 {[%clk 0:01:01.3]} 26. Be3 {[%clk
0:03:09.3]} 26... Bg4+ {[%clk 0:00:40.3]} 27. Kf2 {[%clk 0:03:07.3]} 27... Ra8
{[%clk 0:00:26.1]} 28. Bc2 {[%clk 0:03:04.7]} 28... Ra5 {[%clk 0:00:15.6]} 29.
f5+ {[%clk 0:03:03]} 29... Bxf5 {[%clk 0:00:11.7]} 30. g4 {[%clk 0:03:01.8]}
30... Nxg4+ {[%clk 0:00:08.9]} 31. Ke2 {[%clk 0:03:00.2]} 31... Bc5 {[%clk
0:00:04.9]} 32. Bxc5 {[%clk 0:02:59]} 32... Rxc5 {[%clk 0:00:03.7]} 33. Rh1
{[%clk 0:02:58.9]} 33... Rxc3 {[%clk 0:00:02.4]} 34. Rg1 {[%clk 0:02:58.8]}
34... Rxc2+ {[%clk 0:00:01]} 35. Kd1 {[%clk 0:02:55]} 1-0

[Event "Live Chess"]
[Site "Chess.com"]
[Date "2023.05.21"]
[Round "-"]
[White "sanjesh_ananda"]
[Black "Hussamalhaidar"]
[Result "0-1"]
[WhiteElo "1163"]
[BlackElo "1119"]
[TimeControl "300"]
[EndTime "5:55:53 PDT"]
[Termination "Hussamalhaidar won on time"]

1. e4 {[%clk 0:04:56.4]} 1... d5 {[%clk 0:04:57]} 2. exd5 {[%clk 0:04:54]} 2...
c6 {[%clk 0:04:55.6]} 3. dxc6 {[%clk 0:04:52.1]} 3... Nxc6 {[%clk 0:04:54]} 4.
Bb5 {[%clk 0:04:48.8]} 4... Nf6 {[%clk 0:04:49.8]} 5. Qf3 {[%clk 0:04:34.4]}
5... Qb6 {[%clk 0:04:43.9]} 6. Ba4 {[%clk 0:04:15.5]} 6... Bd7 {[%clk
0:04:41.3]} 7. Ne2 {[%clk 0:04:01.7]} 7... Bg4 {[%clk 0:04:34.5]} 8. Qd3 {[%clk
0:03:37.1]} 8... Rd8 {[%clk 0:04:27.8]} 9. Qg3 {[%clk 0:03:19]} 9... e6 {[%clk
0:04:18.3]} 10. Nbc3 {[%clk 0:03:14.4]} 10... Bd6 {[%clk 0:04:14.1]} 11. Qe3
{[%clk 0:02:55.9]} 11... Bc5 {[%clk 0:04:08.2]} 12. Qf4 {[%clk 0:02:46.1]} 12...
g5 {[%clk 0:03:57.5]} 13. Qxf6 {[%clk 0:02:41.8]} 13... Bxe2 {[%clk 0:03:25.7]}
14. Nxe2 {[%clk 0:02:37.6]} 14... Rg8 {[%clk 0:03:14.6]} 15. O-O {[%clk
0:02:27.6]} 15... Rg6 {[%clk 0:03:12.1]} 16. Qh8+ {[%clk 0:02:00.7]} 16... Ke7
{[%clk 0:03:06.8]} 17. Qxh7 {[%clk 0:01:58.6]} 17... Rdg8 {[%clk 0:02:59.9]} 18.
Bxc6 {[%clk 0:01:40.1]} 18... Qxc6 {[%clk 0:02:55.9]} 19. d4 {[%clk 0:01:35.3]}
19... Bd6 {[%clk 0:02:38]} 20. Qh3 {[%clk 0:01:13.9]} 20... g4 {[%clk
0:02:27.3]} 21. Qb3 {[%clk 0:01:02.7]} 21... Bxh2+ {[%clk 0:02:19.3]} 22. Kxh2
{[%clk 0:00:46.3]} 22... Qd6+ {[%clk 0:02:15.9]} 23. g3 {[%clk 0:00:31.7]} 23...
Rh8+ {[%clk 0:02:10.4]} 24. Kg2 {[%clk 0:00:22]} 24... Qc6+ {[%clk 0:02:04.8]}
25. d5 {[%clk 0:00:20.2]} 25... exd5 {[%clk 0:02:01.1]} 26. Qe3+ {[%clk
0:00:13.3]} 26... Re6 {[%clk 0:01:56.5]} 27. Qg5+ {[%clk 0:00:11.1]} 27... Rf6
{[%clk 0:01:44.8]} 28. Bf4 {[%clk 0:00:08.4]} 28... d4+ {[%clk 0:01:41]} 0-1

[Event "Live Chess"]
[Site "Chess.com"]
[Date "2023.05.21"]
[Round "-"]
[White "LodeshChess"]
[Black "GMHarry-youtube"]
[Result "0-1"]
[WhiteElo "1175"]
[BlackElo "2025"]
[TimeControl "300"]
[EndTime "5:55:58 PDT"]
[Termination "GMHarry-youtube won by resignation"]

1. e4 {[%clk 0:04:59.8]} 1... c5 {[%clk 0:04:58.7]} 2. Nf3 {[%clk 0:04:58.9]}
2... d6 {[%clk 0:04:58]} 3. d4 {[%clk 0:04:56.9]} 3... cxd4 {[%clk 0:04:57.9]}
4. Qxd4 {[%clk 0:04:56.3]} 4... Nf6 {[%clk 0:04:57.8]} 5. Be2 {[%clk 0:04:53]}
5... Nc6 {[%clk 0:04:57.7]} 6. Qe3 {[%clk 0:04:52.4]} 6... g6 {[%clk 0:04:56.7]}
7. h4 {[%clk 0:04:47.3]} 7... h5 {[%clk 0:04:55]} 8. Ng5 {[%clk 0:04:35.4]} 8...
Nh7 {[%clk 0:04:49.1]} 9. g4 {[%clk 0:04:32.4]} 9... Nxg5 {[%clk 0:04:46.6]} 10.
Qxg5 {[%clk 0:04:32]} 10... Bh6 {[%clk 0:04:45.1]} 11. Qxh6 {[%clk 0:04:22.9]}
11... Rxh6 {[%clk 0:04:43.3]} 12. Bxh6 {[%clk 0:04:22.5]} 12... Bxg4 {[%clk
0:04:42.2]} 13. Bxg4 {[%clk 0:04:18.6]} 13... hxg4 {[%clk 0:04:42.1]} 14. h5
{[%clk 0:04:17.5]} 14... gxh5 {[%clk 0:04:40.3]} 15. Rxh5 {[%clk 0:04:16]} 15...
Qb6 {[%clk 0:04:39.3]} 16. b3 {[%clk 0:04:05.1]} 16... Qd4 {[%clk 0:04:33.6]}
17. Be3 {[%clk 0:03:47.4]} 17... Qxa1 {[%clk 0:04:29.7]} 18. Rh4 {[%clk
0:03:44.8]} 18... Qxb1+ {[%clk 0:04:28.5]} 0-1

[Event "Live Chess"]
[Site "Chess.com"]
[Date "2023.05.21"]
[Round "-"]
[White "gmnorfolk"]
[Black "ViktorTheCoolBoy"]
[Result "0-1"]
[WhiteElo "2139"]
[BlackElo "2461"]
[TimeControl "300"]
[EndTime "5:56:08 PDT"]
[Termination "ViktorTheCoolBoy won by resignation"]

1. d4 {[%clk 0:04:57.6]} 1... e6 {[%clk 0:04:59]} 2. c4 {[%clk 0:04:55.6]} 2...
b6 {[%clk 0:04:51.5]} 3. e4 {[%clk 0:04:52.3]} 3... Bb7 {[%clk 0:04:50]} 4. Bd3
{[%clk 0:04:51.3]} 4... Nf6 {[%clk 0:04:47.1]} 5. f3 {[%clk 0:04:46.9]} 5... d5
{[%clk 0:04:42.1]} 6. cxd5 {[%clk 0:04:45.2]} 6... exd5 {[%clk 0:04:39.3]} 7. e5
{[%clk 0:04:44.6]} 7... Nfd7 {[%clk 0:04:38.5]} 8. Ne2 {[%clk 0:04:40]} 8... c5
{[%clk 0:04:37.2]} 9. f4 {[%clk 0:04:38.4]} 9... Nc6 {[%clk 0:04:35.6]} 10. Be3
{[%clk 0:04:33.6]} 10... Be7 {[%clk 0:04:33.9]} 11. O-O {[%clk 0:04:30.2]} 11...
O-O {[%clk 0:04:31.6]} 12. Nbc3 {[%clk 0:04:29.1]} 12... Nb4 {[%clk 0:04:29]}
13. Bb1 {[%clk 0:04:24.5]} 13... a5 {[%clk 0:04:27.7]} 14. a3 {[%clk 0:04:19.9]}
14... Na6 {[%clk 0:04:25.8]} 15. Qd3 {[%clk 0:04:11.8]} 15... g6 {[%clk
0:04:20.7]} 16. f5 {[%clk 0:04:10.6]} 16... c4 {[%clk 0:04:19.2]} 17. Qd2 {[%clk
0:04:03.4]} 17... Bc6 {[%clk 0:04:11.4]} 18. Bh6 {[%clk 0:04:01.7]} 18... b5
{[%clk 0:04:08.6]} 19. f6 {[%clk 0:03:56]} 19... b4 {[%clk 0:03:52.7]} 20. axb4
{[%clk 0:03:52.2]} 20... axb4 {[%clk 0:03:52.1]} 21. Nd1 {[%clk 0:03:35.2]}
21... Bc5 {[%clk 0:03:35.6]} 22. dxc5 {[%clk 0:03:31.8]} 22... Re8 {[%clk
0:03:34.4]} 23. Nd4 {[%clk 0:03:27.6]} 23... Nxe5 {[%clk 0:03:30.1]} 24. Nxc6
{[%clk 0:03:20]} 24... Nxc6 {[%clk 0:03:28.6]} 25. Ne3 {[%clk 0:03:15.3]} 25...
Nxc5 {[%clk 0:03:25.5]} 26. Nxd5 {[%clk 0:03:11]} 26... Rxa1 {[%clk 0:03:22.3]}
27. Bxg6 {[%clk 0:02:39.5]} 27... Rxf1+ {[%clk 0:03:14.2]} 28. Kxf1 {[%clk
0:02:38.3]} 28... hxg6 {[%clk 0:03:08.6]} 29. Bg7 {[%clk 0:02:36.5]} 29... Qd7
{[%clk 0:03:02.1]} 30. Qh6 {[%clk 0:02:30.1]} 30... Qf5+ {[%clk 0:03:01.1]} 31.
Nf4 {[%clk 0:02:26.2]} 31... Qb1+ {[%clk 0:02:59.7]} 32. Kf2 {[%clk 0:02:19]}
32... Ne4+ {[%clk 0:02:57.7]} 33. Kf3 {[%clk 0:02:11.8]} 33... Qd1+ {[%clk
0:02:53.1]} 34. Ne2 {[%clk 0:02:06.5]} 34... Qd3+ {[%clk 0:02:49.8]} 35. Kg4
{[%clk 0:01:47.2]} 35... Qxe2+ {[%clk 0:02:48.1]} 0-1

[Event "Live Chess"]
[Site "Chess.com"]
[Date "2023.05.21"]
[Round "-"]
[White "luckywookie"]
[Black "chessfiction"]
[Result "0-1"]
[WhiteElo "805"]
[BlackElo "2310"]
[TimeControl "300"]
[EndTime "5:56:18 PDT"]
[Termination "chessfiction won by checkmate"]

1. e4 {[%clk 0:04:56.6]} 1... d5 {[%clk 0:04:58.7]} 2. exd5 {[%clk 0:04:53]}
2... c6 {[%clk 0:04:58]} 3. d4 {[%clk 0:04:44.8]} 3... Nf6 {[%clk 0:04:55.7]} 4.
Nf3 {[%clk 0:04:43.3]} 4... Bg4 {[%clk 0:04:45.3]} 5. c4 {[%clk 0:04:30.7]} 5...
cxd5 {[%clk 0:04:43.2]} 6. c5 {[%clk 0:04:25.7]} 6... Nc6 {[%clk 0:04:41.3]} 7.
Bb5 {[%clk 0:04:22.6]} 7... Ne4 {[%clk 0:04:39.1]} 8. Be3 {[%clk 0:04:16.4]}
8... Qa5+ {[%clk 0:04:37.2]} 9. Nc3 {[%clk 0:04:13.2]} 9... Nxc3 {[%clk
0:04:36.2]} 10. bxc3 {[%clk 0:04:11.6]} 10... Qxb5 {[%clk 0:04:34.9]} 11. h3
{[%clk 0:04:07.4]} 11... Bxf3 {[%clk 0:04:33.6]} 12. gxf3 {[%clk 0:04:03.5]}
12... e5 {[%clk 0:04:32.6]} 13. Rg1 {[%clk 0:03:57.3]} 13... O-O-O {[%clk
0:04:21.4]} 14. f4 {[%clk 0:03:52.2]} 14... exf4 {[%clk 0:04:16.7]} 15. Bxf4
{[%clk 0:03:50.4]} 15... Re8+ {[%clk 0:04:16]} 16. Be3 {[%clk 0:03:47.2]} 16...
Be7 {[%clk 0:04:07.4]} 17. Qg4+ {[%clk 0:03:45]} 17... Kb8 {[%clk 0:04:04.3]}
18. Qxg7 {[%clk 0:03:24.9]} 18... Qb2 {[%clk 0:03:58.3]} 19. Qg3+ {[%clk
0:03:13.8]} 19... Ka8 {[%clk 0:03:56.3]} 20. Rc1 {[%clk 0:02:52.5]} 20... Bh4
{[%clk 0:03:52]} 21. Qxh4 {[%clk 0:02:39.8]} 21... Rxe3+ {[%clk 0:03:49.9]} 22.
Kf1 {[%clk 0:02:35.6]} 22... Qxc1+ {[%clk 0:03:47.3]} 23. Kg2 {[%clk 0:02:33.7]}
23... Rg8+ {[%clk 0:03:45.2]} 24. Kh2 {[%clk 0:02:32.2]} 24... Qxg1# {[%clk
0:03:43.9]} 0-1

[Event "Live Chess"]
[Site "Chess.com"]
[Date "2023.05.21"]
[Round "-"]
[White "Vitalii18a"]
[Black "Leonid_Starozhilov"]
[Result "0-1"]
[WhiteElo "1127"]
[BlackElo "2638"]
[TimeControl "300"]
[EndTime "5:56:19 PDT"]
[Termination "Leonid_Starozhilov won by checkmate"]

1. e4 {[%clk 0:04:55.9]} 1... c6 {[%clk 0:04:58.2]} 2. Nf3 {[%clk 0:04:54.2]}
2... d5 {[%clk 0:04:58.1]} 3. e5 {[%clk 0:04:53.2]} 3... Bg4 {[%clk 0:04:56.4]}
4. h3 {[%clk 0:04:50.1]} 4... Bh5 {[%clk 0:04:55.1]} 5. g4 {[%clk 0:04:48.6]}
5... Bg6 {[%clk 0:04:53.7]} 6. d4 {[%clk 0:04:47]} 6... e6 {[%clk 0:04:52.7]} 7.
c3 {[%clk 0:04:44.4]} 7... h5 {[%clk 0:04:48]} 8. g5 {[%clk 0:04:39.3]} 8... c5
{[%clk 0:04:44.1]} 9. h4 {[%clk 0:04:37]} 9... Nc6 {[%clk 0:04:42.8]} 10. Bd3
{[%clk 0:04:24]} 10... Nge7 {[%clk 0:04:39.2]} 11. Bxg6 {[%clk 0:04:17.3]} 11...
Nxg6 {[%clk 0:04:36]} 12. Be3 {[%clk 0:04:10.7]} 12... Qb6 {[%clk 0:04:31.7]}
13. b3 {[%clk 0:04:07.9]} 13... cxd4 {[%clk 0:04:27.7]} 14. Nxd4 {[%clk
0:04:03.9]} 14... Nxd4 {[%clk 0:04:24.1]} 15. Bxd4 {[%clk 0:04:01.8]} 15... Bc5
{[%clk 0:04:22.4]} 16. a4 {[%clk 0:03:50.4]} 16... Rc8 {[%clk 0:04:19.9]} 17.
Bxc5 {[%clk 0:03:47.8]} 17... Qxc5 {[%clk 0:04:17.8]} 18. b4 {[%clk 0:03:44.8]}
18... Qc4 {[%clk 0:04:16]} 19. Ra3 {[%clk 0:03:22.2]} 19... Qe4+ {[%clk
0:04:14.8]} 20. Qe2 {[%clk 0:03:18.1]} 20... Qxh1+ {[%clk 0:04:13.9]} 21. Kd2
{[%clk 0:03:14.8]} 21... O-O {[%clk 0:04:11.1]} 22. Qd1 {[%clk 0:03:00.3]} 22...
Qxh4 {[%clk 0:04:09.4]} 23. Kc2 {[%clk 0:02:45.1]} 23... Qxg5 {[%clk 0:04:01.3]}
24. Nd2 {[%clk 0:02:41.5]} 24... Qxe5 {[%clk 0:03:59.7]} 25. Nf3 {[%clk
0:02:36.4]} 25... Qe4+ {[%clk 0:03:59]} 26. Kb2 {[%clk 0:02:33.5]} 26... h4
{[%clk 0:03:57.6]} 27. Ng5 {[%clk 0:02:07.6]} 27... Qf5 {[%clk 0:03:48.9]} 28.
Nf3 {[%clk 0:02:03.8]} 28... h3 {[%clk 0:03:46.3]} 29. a5 {[%clk 0:01:54.8]}
29... Ne5 {[%clk 0:03:43.6]} 30. Nxe5 {[%clk 0:01:46.4]} 30... Qxe5 {[%clk
0:03:42.4]} 31. Qf3 {[%clk 0:01:33.2]} 31... d4 {[%clk 0:03:33.3]} 32. cxd4
{[%clk 0:01:24.4]} 32... Qxd4+ {[%clk 0:03:32.5]} 33. Kb3 {[%clk 0:01:15.5]}
33... Qd5+ {[%clk 0:03:30.4]} 34. Qxd5 {[%clk 0:01:13.4]} 34... exd5 {[%clk
0:03:30.3]} 35. Ka4 {[%clk 0:01:11.3]} 35... Rc2 {[%clk 0:03:22]} 36. Rxh3
{[%clk 0:01:08.5]} 36... Rxf2 {[%clk 0:03:20.8]} 37. Rd3 {[%clk 0:01:06.4]}
37... Rd8 {[%clk 0:03:18.9]} 38. Kb5 {[%clk 0:01:04.7]} 38... d4 {[%clk
0:03:17.8]} 39. Kc4 {[%clk 0:01:01.3]} 39... Rc2+ {[%clk 0:03:16.7]} 40. Kb3
{[%clk 0:00:59.3]} 40... Rc3+ {[%clk 0:03:15.8]} 41. Rxc3 {[%clk 0:00:57.4]}
41... dxc3 {[%clk 0:03:15.7]} 42. Kxc3 {[%clk 0:00:56.7]} 42... g5 {[%clk
0:03:14.7]} 43. Kc2 {[%clk 0:00:54.7]} 43... g4 {[%clk 0:03:14.6]} 44. b5 {[%clk
0:00:53.8]} 44... g3 {[%clk 0:03:08.5]} 45. a6 {[%clk 0:00:52.3]} 45... b6
{[%clk 0:03:07.8]} 46. Kc3 {[%clk 0:00:49.5]} 46... f5 {[%clk 0:03:07.7]} 47.
Kc4 {[%clk 0:00:48.5]} 47... f4 {[%clk 0:03:07.6]} 48. Kc3 {[%clk 0:00:47.7]}
48... f3 {[%clk 0:03:07.5]} 49. Kc4 {[%clk 0:00:46.9]} 49... f2 {[%clk
0:03:07.4]} 50. Kc3 {[%clk 0:00:46]} 50... g2 {[%clk 0:03:07.3]} 51. Kc4 {[%clk
0:00:45.2]} 51... g1=R {[%clk 0:03:05.7]} 52. Kc3 {[%clk 0:00:44]} 52... f1=R
{[%clk 0:03:04.5]} 53. Kc4 {[%clk 0:00:42.6]} 53... Rg5 {[%clk 0:03:03.1]} 54.
Kc3 {[%clk 0:00:40.9]} 54... Rf4 {[%clk 0:03:02.4]} 55. Kc2 {[%clk 0:00:39.6]}
55... Rd6 {[%clk 0:03:01]} 56. Kc3 {[%clk 0:00:38.4]} 56... Rh6 {[%clk
0:03:00.6]} 57. Kb3 {[%clk 0:00:36.8]} 57... Kf7 {[%clk 0:02:59.8]} 58. Kc3
{[%clk 0:00:35.5]} 58... Ke6 {[%clk 0:02:59.7]} 59. Kc2 {[%clk 0:00:34.2]} 59...
Kd5 {[%clk 0:02:59.2]} 60. Kc3 {[%clk 0:00:33.2]} 60... Kc5 {[%clk 0:02:58.9]}
61. Kb3 {[%clk 0:00:31.8]} 61... Kxb5 {[%clk 0:02:58.4]} 62. Ka3 {[%clk
0:00:30]} 62... Kxa6 {[%clk 0:02:58.1]} 63. Kb3 {[%clk 0:00:28.5]} 63... Kb7
{[%clk 0:02:57.8]} 64. Kc3 {[%clk 0:00:27.2]} 64... a5 {[%clk 0:02:57.3]} 65.
Kd3 {[%clk 0:00:26.2]} 65... b5 {[%clk 0:02:57.2]} 66. Kd2 {[%clk 0:00:24.9]}
66... a4 {[%clk 0:02:55.2]} 67. Kd3 {[%clk 0:00:23.9]} 67... b4 {[%clk
0:02:54.3]} 68. Ke3 {[%clk 0:00:22.8]} 68... Rgg4 {[%clk 0:02:53.5]} 69. Kd2
{[%clk 0:00:21.5]} 69... Rh2+ {[%clk 0:02:52.2]} 70. Kd3 {[%clk 0:00:19.9]}
70... Rh3+ {[%clk 0:02:51.4]} 71. Kd2 {[%clk 0:00:18.3]} 71... a3 {[%clk
0:02:51]} 72. Kc2 {[%clk 0:00:17.3]} 72... b3+ {[%clk 0:02:50]} 73. Kd2 {[%clk
0:00:16.5]} 73... a2 {[%clk 0:02:45.1]} 74. Ke2 {[%clk 0:00:16.4]} 74... b2
{[%clk 0:02:44]} 75. Kd2 {[%clk 0:00:16.3]} 75... b1=R {[%clk 0:02:42]} 76. Ke2
{[%clk 0:00:16.2]} 76... a1=R {[%clk 0:02:40.4]} 77. Kd2 {[%clk 0:00:16.1]}
77... Rb2# {[%clk 0:02:37.6]} 0-1

[Event "Live Chess"]
[Site "Chess.com"]
[Date "2023.05.21"]
[Round "-"]
[White "febray_27"]
[Black "Tushinskiy"]
[Result "0-1"]
[WhiteElo "2002"]
[BlackElo "2223"]
[TimeControl "300"]
[EndTime "5:56:22 PDT"]
[Termination "Tushinskiy won by resignation"]

1. Nf3 {[%clk 0:04:55.8]} 1... d5 {[%clk 0:04:52.4]} 2. d4 {[%clk 0:04:53.3]}
2... c6 {[%clk 0:04:52.3]} 3. g3 {[%clk 0:04:52.2]} 3... Nf6 {[%clk 0:04:51.2]}
4. Bg2 {[%clk 0:04:51.5]} 4... Bg4 {[%clk 0:04:50.2]} 5. O-O {[%clk 0:04:51]}
5... Nbd7 {[%clk 0:04:49.5]} 6. c4 {[%clk 0:04:49.1]} 6... e6 {[%clk 0:04:47.9]}
7. Nc3 {[%clk 0:04:45.8]} 7... Bd6 {[%clk 0:04:44.5]} 8. b3 {[%clk 0:04:42.5]}
8... Qe7 {[%clk 0:04:43.1]} 9. Bb2 {[%clk 0:04:41.1]} 9... Ne4 {[%clk
0:04:41.7]} 10. c5 {[%clk 0:04:21.5]} 10... Bc7 {[%clk 0:04:38.9]} 11. Rc1
{[%clk 0:04:15.9]} 11... Nxc3 {[%clk 0:04:35.3]} 12. Bxc3 {[%clk 0:04:14.6]}
12... O-O {[%clk 0:04:34.5]} 13. a4 {[%clk 0:04:06.7]} 13... Rae8 {[%clk
0:04:30.2]} 14. Re1 {[%clk 0:04:04.8]} 14... f5 {[%clk 0:04:28.4]} 15. Bd2
{[%clk 0:03:53.6]} 15... f4 {[%clk 0:04:21.7]} 16. h3 {[%clk 0:03:28.9]} 16...
Bxf3 {[%clk 0:04:20.1]} 17. exf3 {[%clk 0:03:14.2]} 17... fxg3 {[%clk
0:04:18.6]} 18. fxg3 {[%clk 0:03:13.7]} 18... Bxg3 {[%clk 0:04:17.9]} 19. Re2
{[%clk 0:03:12.9]} 19... Nf6 {[%clk 0:04:12.3]} 20. Be1 {[%clk 0:03:00.5]} 20...
Bxe1 {[%clk 0:04:09.4]} 21. Qxe1 {[%clk 0:02:59.3]} 21... Nh5 {[%clk 0:04:08]}
22. Re5 {[%clk 0:02:48]} 22... Nf4 {[%clk 0:04:05.7]} 23. Rc2 {[%clk 0:02:43.7]}
23... Rf6 {[%clk 0:04:02.9]} 24. Qe3 {[%clk 0:02:36.6]} 24... Ref8 {[%clk
0:03:52.9]} 25. Kh2 {[%clk 0:02:17.9]} 25... Rg6 {[%clk 0:03:49.3]} 26. Bf1
{[%clk 0:02:03.3]} 26... Qh4 {[%clk 0:03:46.3]} 27. Qf2 {[%clk 0:01:53.2]} 27...
Qf6 {[%clk 0:03:42.2]} 28. Qe3 {[%clk 0:01:37]} 28... Qh4 {[%clk 0:03:30.4]} 29.
Qf2 {[%clk 0:01:35.8]} 29... Qh6 {[%clk 0:03:29.3]} 30. Qe3 {[%clk 0:01:18.8]}
30... Rff6 {[%clk 0:03:23.5]} 31. Bg2 {[%clk 0:00:59.7]} 31... Rxg2+ {[%clk
0:03:14.1]} 32. Rxg2 {[%clk 0:00:59.6]} 32... Qxh3+ {[%clk 0:03:12.7]} 0-1